[Event "Masterklassen 2025"]
[Site "Uppsala, Sweden"]
[Date "2025.07.05"]
[Round "8.9"]
[White "Sundin, Emanuel"]
[Black "Dingertz, Erik"]
[Result "1-0"]
[TimeControl "90 min for 40 move + 30 min with an increment of 30 sec starting move 1"]
[WhiteFideId "1719173"]
[BlackFideId "1741578"]
[WhiteElo "2117"]
[BlackElo "2121"]

1. e4 {[%clk 01:30:54]} {[%emt 00:00:05]} e5 {[%clk 01:30:54]} {[%emt
00:00:07]} 2. Nf3 {[%clk 01:31:07]} {[%emt 00:00:17]} Nc6 {[%clk 01:31:17]}
{[%emt 00:00:07]} 3. Bc4 {[%clk 01:31:23]} {[%emt 00:00:14]} Bc5 {[%clk
01:31:40]} {[%emt 00:00:07]} 4. c3 {[%clk 01:31:33]} {[%emt 00:00:20]} Nf6
{[%clk 01:32:03]} {[%emt 00:00:07]} 5. d3 {[%clk 01:30:42]} {[%emt 00:01:22]}
O-O {[%clk 01:32:26]} {[%emt 00:00:07]} 6. O-O {[%clk 01:31:00]} {[%emt
00:00:11]} d5 {[%clk 01:32:51]} {[%emt 00:00:05]} 7. exd5 {[%clk 01:30:32]}
{[%emt 00:00:58]} Nxd5 {[%clk 01:33:11]} {[%emt 00:00:10]} 8. Re1 {[%clk
01:30:16]} {[%emt 00:00:46]} Bg4 {[%clk 01:33:37]} {[%emt 00:00:05]} 9. Nbd2
{[%clk 01:28:03]} {[%emt 00:02:43]} Nb6 {[%clk 01:32:56]} {[%emt 00:01:11]} 10.
h3 {[%clk 01:27:10]} {[%emt 00:01:22]} Bh5 {[%clk 01:33:22]} {[%emt 00:00:05]}
11. b4 {[%clk 01:26:11]} {[%emt 00:01:29]} Be7 {[%clk 01:32:59]} {[%emt
00:00:53]} 12. Qe2 {[%clk 01:25:57]} {[%emt 00:00:43]} a6 {[%clk 01:21:40]}
{[%emt 00:11:50]} 13. Bb3 {[%clk 01:23:58]} {[%emt 00:02:29]} Kh8 {[%clk
01:21:08]} {[%emt 00:01:02]} 14. Ne4 {[%clk 01:23:18]} {[%emt 00:01:09]} f5
{[%clk 01:14:51]} {[%emt 00:06:47]} 15. Ng3 {[%clk 01:22:42]} {[%emt 00:01:06]}
Bg6 {[%clk 01:13:31]} {[%emt 00:01:51]} 16. Bb2 {[%clk 01:22:10]} {[%emt
00:01:01]} Bf6 {[%clk 01:13:11]} {[%emt 00:00:50]} 17. Rad1 {[%clk 01:22:12]}
{[%emt 00:00:28]} Qd7 {[%clk 00:57:13]} {[%emt 00:16:29]} 18. a4 {[%clk
01:17:26]} {[%emt 00:05:16]} Rae8 {[%clk 00:56:35]} {[%emt 00:01:08]} 19. Qd2
{[%clk 01:05:51]} {[%emt 00:12:05]} Nc8 {[%clk 00:46:35]} {[%emt 00:10:31]} 20.
Ba3 {[%clk 00:57:57]} {[%emt 00:08:23]} b5 {[%clk 00:38:19]} {[%emt 00:08:46]}
21. c4 {[%clk 00:44:03]} {[%emt 00:14:23]} Nd4 {[%clk 00:27:19]} {[%emt
00:11:30]} 22. Nxd4 {[%clk 00:43:00]} {[%emt 00:01:33]} exd4 {[%clk 00:27:27]}
{[%emt 00:00:22]} 23. cxb5 {[%clk 00:35:22]} {[%emt 00:08:09]} axb5 {[%clk
00:27:26]} {[%emt 00:00:32]} 24. a5 {[%clk 00:35:18]} {[%emt 00:00:34]} Ne7
{[%clk 00:18:58]} {[%emt 00:08:57]} 25. Ne2 {[%clk 00:34:21]} {[%emt 00:01:27]}
Bh5 {[%clk 00:17:57]} {[%emt 00:01:31]} 26. Rc1 {[%clk 00:32:16]} {[%emt
00:02:34]} Bxe2 {[%clk 00:16:13]} {[%emt 00:02:15]} 27. Rxe2 {[%clk 00:32:39]}
{[%emt 00:00:06]} f4 {[%clk 00:12:23]} {[%emt 00:04:20]} 28. Be6 {[%clk
00:16:26]} {[%emt 00:16:43]} Qd6 {[%clk 00:12:18]} {[%emt 00:00:35]} 29. Bg4
{[%clk 00:16:14]} {[%emt 00:00:42]} Ng6 {[%clk 00:11:13]} {[%emt 00:01:36]} 30.
Bf3 {[%clk 00:07:51]} {[%emt 00:08:52]} Ne5 {[%clk 00:11:16]} {[%emt 00:00:27]}
31. Rxe5 {[%clk 00:07:48]} {[%emt 00:00:33]} Rxe5 {[%clk 00:10:17]} {[%emt
00:01:29]} 32. Rc6 {[%clk 00:07:51]} {[%emt 00:00:28]} Qe7 {[%clk 00:10:24]}
{[%emt 00:00:22]} 33. Qc2 {[%clk 00:06:49]} {[%emt 00:01:33]} Re1+ {[%clk
00:10:20]} {[%emt 00:00:35]} 34. Kh2 {[%clk 00:07:17]} {[%emt 00:00:01]} Be5
{[%clk 00:10:30]} {[%emt 00:00:20]} 35. Qc5 {[%clk 00:06:43]} {[%emt 00:01:03]}
Bd6 {[%clk 00:05:18]} {[%emt 00:05:43]} 36. Qxd4 {[%clk 00:05:11]} {[%emt
00:02:02]} Qh4 {[%clk 00:03:47]} {[%emt 00:02:01]} 37. Rxd6 {[%clk 00:05:32]}
{[%emt 00:00:08]} cxd6 {[%clk 00:04:13]} {[%emt 00:00:04]} 38. Bb2 {[%clk
00:02:29]} {[%emt 00:03:34]} Qg5 {[%clk 00:03:57]} {[%emt 00:00:45]} 39. a6
{[%clk 00:02:12]} {[%emt 00:00:48]} d5 {[%clk 00:02:26]} {[%emt 00:02:01]} 40.
a7 {[%clk 00:02:03]} {[%emt 00:00:39]} Ree8 {[%clk 00:01:45]} {[%emt 00:01:10]}
41. Qc5 {[%clk 00:22:57]} {[%emt 00:09:36]} Rd8 {[%clk 00:27:05]} {[%emt
00:05:11]} 42. Qxb5 {[%clk 00:20:50]} {[%emt 00:02:37]} h5 {[%clk 00:27:25]}
{[%emt 00:00:09]} 43. Bd4 {[%clk 00:20:13]} {[%emt 00:01:07]} h4 {[%clk
00:26:48]} {[%emt 00:01:08]} 44. Qa4 {[%clk 00:15:00]} {[%emt 00:05:43]} Rfe8
{[%clk 00:25:59]} {[%emt 00:01:19]} 45. Qa1 {[%clk 00:14:36]} {[%emt 00:00:53]}
Kh7 {[%clk 00:26:11]} {[%emt 00:00:18]} 46. b5 {[%clk 00:14:32]} {[%emt
00:00:35]} Re7 {[%clk 00:25:48]} {[%emt 00:00:53]} 47. Qd1 {[%clk 00:12:41]}
{[%emt 00:02:20]} Rde8 {[%clk 00:24:35]} {[%emt 00:01:44]} 48. Bg4 {[%clk
00:12:04]} {[%emt 00:01:06]} Qg6 {[%clk 00:24:52]} {[%emt 00:00:14]} 49. b6
{[%clk 00:11:33]} {[%emt 00:01:01]} Re1 {[%clk 00:23:48]} {[%emt 00:01:34]} 50.
Qf3 {[%clk 00:11:37]} {[%emt 00:00:26]} Rb1 {[%clk 00:23:21]} {[%emt 00:00:56]}
51. Bh5 {[%clk 00:06:18]} {[%emt 00:05:49]} Qg3+ {[%clk 00:20:11]} {[%emt
00:03:40]} 52. fxg3 {[%clk 00:06:41]} {[%emt 00:00:08]} Ree1 {[%clk 00:20:37]}
{[%emt 00:00:04]} 53. Bg6+ {[%clk 00:05:03]} {[%emt 00:02:07]} Kxg6 {[%clk
00:21:01]} {[%emt 00:00:06]} 54. Qg4+ {[%clk 00:05:23]} {[%emt 00:00:10]} Kf7
{[%clk 00:21:12]} {[%emt 00:00:19]} 55. Qxf4+ {[%clk 00:05:46]} {[%emt
00:00:08]} Ke7 {[%clk 00:21:38]} {[%emt 00:00:05]} 56. gxh4 {[%clk 00:06:00]}
{[%emt 00:00:15]} 1-0

[Event "Masterklassen 2025"]
[Site "Uppsala, Sweden"]
[Date "2025.07.05"]
[Round "8.10"]
[White "Mardell, Jimmy"]
[Black "Soppela, Toni"]
[Result "1/2-1/2"]
[TimeControl "90 min for 40 move + 30 min with an increment of 30 sec starting move 1"]
[WhiteFideId "1705610"]
[BlackFideId "1766163"]
[WhiteElo "2227"]
[BlackElo "2090"]

1. e4 {[%clk 01:30:56]} {[%emt 00:00:04]} e5 {[%clk 01:30:36]} {[%emt
00:00:23]} 2. Nf3 {[%clk 01:31:19]} {[%emt 00:00:08]} Nc6 {[%clk 01:30:41]}
{[%emt 00:00:26]} 3. Bc4 {[%clk 01:31:37]} {[%emt 00:00:11]} Bc5 {[%clk
01:30:27]} {[%emt 00:00:44]} 4. c3 {[%clk 01:31:52]} {[%emt 00:00:16]} Nf6
{[%clk 01:29:44]} {[%emt 00:01:13]} 5. d3 {[%clk 01:32:12]} {[%emt 00:00:09]}
a5 {[%clk 01:28:41]} {[%emt 00:01:33]} 6. O-O {[%clk 01:31:21]} {[%emt
00:01:21]} d6 {[%clk 01:27:25]} {[%emt 00:01:47]} 7. Re1 {[%clk 01:31:12]}
{[%emt 00:00:39]} Ba7 {[%clk 01:25:28]} {[%emt 00:02:26]} 8. Bb3 {[%clk
01:30:33]} {[%emt 00:01:09]} h6 {[%clk 01:21:38]} {[%emt 00:04:19]} 9. Be3
{[%clk 01:22:50]} {[%emt 00:08:13]} O-O {[%clk 01:20:09]} {[%emt 00:01:59]} 10.
Bxa7 {[%clk 01:20:06]} {[%emt 00:03:15]} Rxa7 {[%clk 01:19:36]} {[%emt
00:01:03]} 11. h3 {[%clk 01:20:23]} {[%emt 00:00:13]} Re8 {[%clk 01:16:09]}
{[%emt 00:03:56]} 12. Nbd2 {[%clk 00:57:45]} {[%emt 00:23:10]} Be6 {[%clk
01:11:06]} {[%emt 00:05:31]} 13. Bxe6 {[%clk 00:54:06]} {[%emt 00:04:11]} Rxe6
{[%clk 01:05:39]} {[%emt 00:05:57]} 14. d4 {[%clk 00:52:38]} {[%emt 00:01:58]}
Re8 {[%clk 01:04:28]} {[%emt 00:01:40]} 15. a3 {[%clk 00:36:50]} {[%emt
00:16:19]} a4 {[%clk 01:00:34]} {[%emt 00:04:22]} 16. Qe2 {[%clk 00:32:17]}
{[%emt 00:05:03]} Qd7 {[%clk 00:33:41]} {[%emt 00:27:24]} 17. Rad1 {[%clk
00:25:21]} {[%emt 00:07:27]} Raa8 {[%clk 00:25:27]} {[%emt 00:08:44]} 18. Kh2
{[%clk 00:20:09]} {[%emt 00:05:41]} g6 {[%clk 00:14:41]} {[%emt 00:11:16]} 19.
Qd3 {[%clk 00:19:36]} {[%emt 00:01:03]} Re7 {[%clk 00:07:27]} {[%emt 00:07:44]}
20. Nf1 {[%clk 00:07:14]} {[%emt 00:12:52]} Qe8 {[%clk 00:05:03]} {[%emt
00:02:55]} 21. Ng3 {[%clk 00:07:17]} {[%emt 00:00:26]} Kh7 {[%clk 00:04:50]}
{[%emt 00:00:42]} 22. Nh4 {[%clk 00:07:24]} {[%emt 00:00:24]} Rd8 {[%clk
00:03:08]} {[%emt 00:02:13]} 23. Qf3 {[%clk 00:07:40]} {[%emt 00:00:14]} Ng8
{[%clk 00:03:12]} {[%emt 00:00:26]} 24. Qe2 {[%clk 00:06:05]} {[%emt 00:02:04]}
Nb8 {[%clk 00:02:04]} {[%emt 00:01:38]} 25. Qc2 {[%clk 00:05:09]} {[%emt
00:01:26]} b5 {[%clk 00:02:10]} {[%emt 00:00:24]} 26. Nf3 {[%clk 00:04:33]}
{[%emt 00:01:06]} Nd7 {[%clk 00:02:25]} {[%emt 00:00:16]} 27. dxe5 {[%clk
00:04:35]} {[%emt 00:00:28]} dxe5 {[%clk 00:02:18]} {[%emt 00:00:36]} 28. c4
{[%clk 00:04:47]} {[%emt 00:00:19]} c6 {[%clk 00:02:24]} {[%emt 00:00:24]} 29.
Rd6 {[%clk 00:03:58]} {[%emt 00:01:18]} Nb6 {[%clk 00:02:17]} {[%emt 00:00:38]}
30. Rxd8 {[%clk 00:03:27]} {[%emt 00:01:01]} Qxd8 {[%clk 00:02:44]} {[%emt
00:00:02]} 31. Rd1 {[%clk 00:03:42]} {[%emt 00:00:15]} Rd7 {[%clk 00:02:52]}
{[%emt 00:00:23]} 32. Rxd7 {[%clk 00:04:05]} {[%emt 00:00:07]} Nxd7 {[%clk
00:03:14]} {[%emt 00:00:08]} 33. cxb5 {[%clk 00:04:09]} {[%emt 00:00:26]} cxb5
{[%clk 00:02:49]} {[%emt 00:00:55]} 34. Qd3 {[%clk 00:04:34]} {[%emt 00:00:05]}
Qe7 {[%clk 00:01:55]} {[%emt 00:01:24]} 35. Qxb5 {[%clk 00:04:56]} {[%emt
00:00:08]} Nc5 {[%clk 00:02:09]} {[%emt 00:00:15]} 36. Qb8 {[%clk 00:02:59]}
{[%emt 00:02:27]} Nd3 {[%clk 00:02:04]} {[%emt 00:00:36]} 37. Qb5 {[%clk
00:02:14]} {[%emt 00:01:14]} Nc5 {[%clk 00:02:12]} {[%emt 00:00:22]} 38. Nd2
{[%clk 00:01:19]} {[%emt 00:01:25]} Nf6 {[%clk 00:02:10]} {[%emt 00:00:32]} 39.
Qc4 {[%clk 00:00:57]} {[%emt 00:00:53]} h5 {[%clk 00:02:01]} {[%emt 00:00:38]}
40. Ngf1 {[%clk 00:01:04]} {[%emt 00:00:23]} Kg7 {[%clk 00:01:51]} {[%emt
00:00:40]} 41. f3 {[%clk 00:25:38]} {[%emt 00:05:56]} h4 {[%clk 00:28:51]}
{[%emt 00:03:29]} 42. b4 {[%clk 00:22:06]} {[%emt 00:04:03]} axb3 {[%clk
00:28:01]} {[%emt 00:01:20]} 43. Nxb3 {[%clk 00:22:33]} {[%emt 00:00:04]} Ne6
{[%clk 00:28:08]} {[%emt 00:00:22]} 44. a4 {[%clk 00:22:44]} {[%emt 00:00:19]}
Nh5 {[%clk 00:27:38]} {[%emt 00:01:00]} 45. a5 {[%clk 00:19:56]} {[%emt
00:03:18]} Nhf4 {[%clk 00:27:20]} {[%emt 00:00:47]} 46. Qc3 {[%clk 00:12:54]}
{[%emt 00:07:32]} f6 {[%clk 00:25:29]} {[%emt 00:02:22]} 47. Ne3 {[%clk
00:12:33]} {[%emt 00:00:51]} Qa3 {[%clk 00:24:39]} {[%emt 00:01:20]} 48. Qc2
{[%clk 00:08:19]} {[%emt 00:04:44]} Kh6 {[%clk 00:20:14]} {[%emt 00:04:55]} 49.
Nd5 {[%clk 00:07:22]} {[%emt 00:01:27]} Kg5 {[%clk 00:19:36]} {[%emt 00:01:08]}
50. Nb6 {[%clk 00:04:51]} {[%emt 00:03:01]} Qb4 {[%clk 00:19:04]} {[%emt
00:01:01]} 51. Nc4 {[%clk 00:03:54]} {[%emt 00:01:29]} Qe1 {[%clk 00:12:04]}
{[%emt 00:07:29]} 52. Qd2 {[%clk 00:03:48]} {[%emt 00:00:36]} Qf1 {[%clk
00:12:17]} {[%emt 00:00:16]} 53. Ne3 {[%clk 00:03:33]} {[%emt 00:00:46]} Qb5
{[%clk 00:12:21]} {[%emt 00:00:26]} 54. Qa2 {[%clk 00:02:56]} {[%emt 00:01:07]}
Qd3 {[%clk 00:12:26]} {[%emt 00:00:25]} 55. Ng4 {[%clk 00:02:36]} {[%emt
00:00:50]} Qf1 {[%clk 00:11:02]} {[%emt 00:01:54]} 56. Qf2 {[%clk 00:01:35]}
{[%emt 00:01:31]} Qb5 {[%clk 00:07:52]} {[%emt 00:03:40]} 57. Qc2 {[%clk
00:01:24]} {[%emt 00:00:41]} Qf1 {[%clk 00:06:44]} {[%emt 00:01:38]} 58. Qd2
{[%clk 00:01:24]} {[%emt 00:00:30]} Qb5 {[%clk 00:06:22]} {[%emt 00:00:52]} 59.
Nc1 {[%clk 00:01:10]} {[%emt 00:00:44]} Nd4 {[%clk 00:05:20]} {[%emt 00:01:32]}
60. Ne3 {[%clk 00:00:49]} {[%emt 00:00:51]} Nc6 {[%clk 00:04:02]} {[%emt
00:01:48]} 61. Qd7 {[%clk 00:01:01]} {[%emt 00:00:18]} Qc5 {[%clk 00:02:26]}
{[%emt 00:02:06]} 62. Qg4+ {[%clk 00:01:03]} {[%emt 00:00:28]} Kh6 {[%clk
00:02:53]} {[%emt 00:00:03]} 63. Qxh4+ {[%clk 00:01:21]} {[%emt 00:00:13]} Kg7
{[%clk 00:03:09]} {[%emt 00:00:13]} 64. Ng4 {[%clk 00:00:39]} {[%emt 00:01:12]}
Nh5 {[%clk 00:02:04]} {[%emt 00:01:35]} 65. Qe1 {[%clk 00:00:51]} {[%emt
00:00:18]} Qxa5 {[%clk 00:01:54]} {[%emt 00:00:40]} 66. Qe3 {[%clk 00:01:10]}
{[%emt 00:00:11]} g5 {[%clk 00:01:47]} {[%emt 00:00:37]} 67. h4 {[%clk
00:01:12]} {[%emt 00:00:28]} Kg6 {[%clk 00:01:31]} {[%emt 00:00:47]} 68. hxg5
{[%clk 00:01:33]} {[%emt 00:00:08]} fxg5 {[%emt 00:00:16]} 69. Qb3 {[%clk
00:01:49]} Nd4 {[%emt 00:02:49]} 70. Qb8 {[%clk 00:00:50]} Nxf3+ {[%clk
00:01:05]} {[%emt 00:00:34]} 71. Kh3 {[%clk 00:00:40]} {[%emt 00:00:41]} Ng1+
{[%clk 00:00:55]} {[%emt 00:00:40]} 72. Kh2 {[%clk 00:01:06]} {[%emt 00:00:04]}
Nf3+ {[%clk 00:01:04]} {[%emt 00:00:20]} 73. Kh3 {[%clk 00:01:12]} {[%emt
00:00:24]} Ng1+ {[%clk 00:00:44]} {[%emt 00:00:50]} 74. Kh2 {[%clk 00:01:38]}
{[%emt 00:00:04]} Nf3+ {[%clk 00:00:36]} {[%emt 00:00:07]} 75. Kh3 {[%emt
00:00:17]} 1/2-1/2

[Event "Masterklassen 2025"]
[Site "Uppsala, Sweden"]
[Date "2025.07.05"]
[Round "8.11"]
[White "Jonsson, Jacob"]
[Black "Lundberg, David"]
[Result "0-1"]
[TimeControl "90 min for 40 move + 30 min with an increment of 30 sec starting move 1"]
[WhiteFideId "1726315"]
[BlackFideId "1707051"]
[WhiteElo "2112"]
[BlackElo "2193"]

1. d4 {[%clk 01:30:58]} {[%emt 00:00:01]} Nf6 {[%clk 01:30:52]} {[%emt
00:00:08]} 2. c4 {[%clk 01:31:24]} {[%emt 00:00:05]} c5 {[%clk 01:31:17]}
{[%emt 00:00:05]} 3. d5 {[%clk 01:31:50]} {[%emt 00:00:03]} e6 {[%clk
01:31:41]} {[%emt 00:00:05]} 4. Nc3 {[%clk 01:32:15]} {[%emt 00:00:05]} exd5
{[%clk 01:32:05]} {[%emt 00:00:07]} 5. cxd5 {[%clk 01:32:40]} {[%emt 00:00:06]}
d6 {[%clk 01:32:29]} {[%emt 00:00:05]} 6. Bf4 {[%clk 01:33:00]} {[%emt
00:00:10]} a6 {[%clk 01:32:01]} {[%emt 00:00:58]} 7. a4 {[%clk 01:33:23]}
{[%emt 00:00:07]} g6 {[%clk 01:32:21]} {[%emt 00:00:10]} 8. h3 {[%clk
01:32:58]} {[%emt 00:00:55]} Bg7 {[%clk 01:32:40]} {[%emt 00:00:11]} 9. e3
{[%clk 01:33:20]} {[%emt 00:00:08]} O-O {[%clk 01:32:51]} {[%emt 00:00:19]} 10.
Bd3 {[%clk 01:29:11]} {[%emt 00:04:38]} Qe7 {[%clk 01:32:50]} {[%emt 00:00:32]}
11. Nf3 {[%clk 01:28:57]} {[%emt 00:00:44]} Nbd7 {[%clk 01:32:58]} {[%emt
00:00:22]} 12. O-O {[%clk 01:24:29]} {[%emt 00:04:58]} Ne8 {[%clk 01:29:33]}
{[%emt 00:03:55]} 13. Rb1 {[%clk 01:14:56]} {[%emt 00:10:02]} Ne5 {[%clk
01:19:32]} {[%emt 00:10:32]} 14. Bc2 {[%clk 01:13:36]} {[%emt 00:01:50]} Bd7
{[%clk 01:13:14]} {[%emt 00:06:47]} 15. Qe2 {[%clk 01:11:01]} {[%emt 00:03:05]}
Nxf3+ {[%clk 01:10:04]} {[%emt 00:03:41]} 16. Qxf3 {[%clk 01:11:24]} {[%emt
00:00:06]} g5 {[%clk 01:03:36]} {[%emt 00:06:58]} 17. Bh2 {[%clk 01:07:38]}
{[%emt 00:04:17]} f5 {[%clk 01:03:25]} {[%emt 00:00:41]} 18. Rfe1 {[%clk
00:59:05]} {[%emt 00:09:01]} h6 {[%clk 00:56:03]} {[%emt 00:07:54]} 19. Qg3
{[%clk 00:57:31]} {[%emt 00:02:04]} b5 {[%clk 00:43:47]} {[%emt 00:12:46]} 20.
f4 {[%clk 00:51:42]} {[%emt 00:06:18]} b4 {[%clk 00:37:32]} {[%emt 00:06:45]}
21. Nd1 {[%clk 00:50:20]} {[%emt 00:01:52]} c4 {[%clk 00:36:29]} {[%emt
00:01:33]} 22. b3 {[%clk 00:49:36]} {[%emt 00:01:14]} Rc8 {[%clk 00:32:47]}
{[%emt 00:04:13]} 23. e4 {[%clk 00:39:58]} {[%emt 00:10:08]} cxb3 {[%clk
00:27:01]} {[%emt 00:06:16]} 24. Qxb3 {[%clk 00:38:06]} {[%emt 00:02:22]} gxf4
{[%clk 00:22:57]} {[%emt 00:04:34]} 25. Bxf4 {[%clk 00:34:19]} {[%emt
00:04:17]} fxe4 {[%clk 00:19:27]} {[%emt 00:03:59]} 26. Bg3 {[%clk 00:20:49]}
{[%emt 00:14:00]} a5 {[%clk 00:16:38]} {[%emt 00:03:19]} 27. Bxe4 {[%clk
00:20:06]} {[%emt 00:01:14]} Qg5 {[%clk 00:15:28]} {[%emt 00:01:39]} 28. Kh2
{[%clk 00:18:10]} {[%emt 00:02:26]} Be5 {[%clk 00:03:36]} {[%emt 00:12:23]} 29.
Re3 {[%clk 00:18:33]} {[%emt 00:00:07]} Nf6 {[%clk 00:02:42]} {[%emt 00:01:24]}
30. Bc2 {[%clk 00:12:23]} {[%emt 00:06:40]} Rc3 {[%clk 00:01:16]} {[%emt
00:01:56]} 31. Bxe5 {[%clk 00:10:13]} {[%emt 00:02:39]} Rxb3 {[%clk 00:01:08]}
{[%emt 00:00:39]} 32. Bxb3 {[%clk 00:09:55]} {[%emt 00:00:48]} dxe5 {[%clk
00:01:01]} {[%emt 00:00:37]} 33. Rg3 {[%clk 00:10:08]} {[%emt 00:00:17]} Ng4+
{[%clk 00:01:04]} {[%emt 00:00:26]} 34. hxg4 {[%clk 00:08:39]} {[%emt
00:02:00]} Rf1 {[%clk 00:00:54]} {[%emt 00:00:40]} 35. Rb2 {[%clk 00:06:47]}
{[%emt 00:02:22]} Qh4+ {[%clk 00:01:00]} {[%emt 00:00:23]} 36. Rh3 {[%clk
00:07:04]} {[%emt 00:00:13]} Qe1 {[%clk 00:01:21]} {[%emt 00:00:09]} 37. d6+
{[%clk 00:05:02]} {[%emt 00:02:32]} Kg7 {[%clk 00:01:04]} {[%emt 00:00:48]} 38.
Nf2 {[%clk 00:05:10]} {[%emt 00:00:22]} Rxf2 {[%clk 00:01:09]} {[%emt
00:00:25]} 39. Rxf2 {[%clk 00:05:34]} {[%emt 00:00:05]} Qxf2 {[%clk 00:01:33]}
{[%emt 00:00:06]} 40. Rf3 {[%clk 00:05:59]} {[%emt 00:00:06]} Qh4+ {[%clk
00:01:49]} {[%emt 00:00:14]} 41. Kg1 {[%clk 00:06:19]} {[%emt 00:00:09]} Qxg4
{[%clk 00:01:14]} {[%emt 00:01:05]} 0-1